bitfinex-derivatives/quotes_SOLF0:USTF0_20251122
["timestamp","ask_amount","ask_price","bid_price","bid_amount"]
[1763849828649,3.22037694,127.19,127.17,0.05318315]
[1763849829337,3.22037694,127.19,127.12,125.22992457]
[1763849829338,3.22037694,127.19,127.12,0.47]
[1763849829730,3.22037694,127.19,127.12,7.5543]
[1763849829934,3.16,127.18,127.1,9.74125248]
[1763849830133,3.16,127.18,127.09,124.78302457]
[1763849830333,3.16,127.14,127.12,0.05550811]
[1763849830534,3.16,127.14,127.09,16.82715248]
[1763849830734,3.16,127.14,127.1,0.0496086]
[1763849831936,3.16,127.14,127.1,0.5696086]
[1763849832342,3.16,127.14,127.11,0.52]
[1763849832538,0.05256888,127.15,127.12,0.52]
[1763849833040,0.05256888,127.15,127.13,0.52]
[1763849833243,0.05256888,127.15,127.13,0.57543889]
[1763849834345,0.05256888,127.15,127.13,7.65913889]
[1763849835533,3.16,127.19,127.14,115.00307209]
[1763849835740,3.16,127.19,127.15,0.52]
[1763849836447,3.16,127.19,127.12,7.0843]
[1763849836650,3.2165953,127.17,127.14,0.04957204]
[1763849837839,3.2165953,127.17,127.1,7.0853]
[1763849838039,3.16,127.16,127.08,7.6063]
[1763849838246,3.16,127.15,127.08,7.0863]
[1763849838853,3.16,127.12,127.1,0.05039581]
[1763849839851,3.21096632,127.13,127.1,0.05039581]
[1763849840052,0.05096632,127.13,127.1,0.62039581]
[1763849840253,3.21096632,127.13,127.1,0.62039581]
[1763849840448,3.21096632,127.13,127.11,7.0849]
[1763849841550,0.05096632,127.13,127.11,7.0849]
[1763849841750,3.21096632,127.13,127.11,7.0849]
[1763849844452,0.05096632,127.13,127.11,7.6549]
[1763849845850,3.21096632,127.13,127.1,0.62039581]
[1763849846356,0.05096632,127.13,127.11,0.57]
[1763849846551,3.16,127.17,127.12,0.57]
[1763849847461,3.16,127.17,127.13,0.0499903]
[1763849847651,3.16,127.15,127.13,0.0499903]
[1763849850448,3.16,127.14,127.09,7.0857]
[1763849851557,3.16,127.12,127.1,0.06046847]
[1763849856361,3.16,127.12,127.1,7.14596847]
[1763849861969,3.16,127.12,127.1,7.74596847]
[1763849862164,3.08488144,127.13,127.1,7.74596847]
[1763849862762,3.08488144,127.13,127.1,9.72665572]
[1763849868566,3.08488144,127.13,127.1,7.14596847]
[1763849868864,3.08488144,127.13,127.11,1.98068725]
[1763849870971,3.08488144,127.13,127.11,9.66568725]
[1763849872671,0.05488144,127.13,127.12,0.6]
[1763849874966,0.05488144,127.13,127.11,7.685]
[1763849875774,3.08488144,127.13,127.1,9.80172095]
[1763849875968,3.08488144,127.13,127.1,0.06046847]
[1763849876371,3.08488144,127.13,127.1,7.14596847]
[1763849876571,3.08488144,127.13,127.1,7.74596847]
[1763849880382,3.08488144,127.13,127.1,0.06046847]
[1763849884084,3.03,127.11,127.1,0.06046847]
[1763849887285,3.03,127.11,127.07,10.42125248]
[1763849887493,3.29,127.14,127.1,3.77408448]
[1763849888191,0.05194257,127.13,127.11,0.05234119]
[1763849888486,3.34194257,127.13,127.11,7.81734119]
[1763849889192,0.05194257,127.13,127.11,7.81734119]
[1763849889594,0.05194257,127.13,127.12,0.68]
[1763849891398,0.05194257,127.13,127.12,3.77408448]
[1763849895008,3.34194257,127.13,127.12,3.09408448]
[1763849895210,3.34194257,127.13,127.11,9.79359367]
[1763849895508,3.34194257,127.13,127.11,0.05234119]
[1763849898101,3.29,127.12,127.11,0.05234119]
[1763849898611,3.29,127.12,127.07,19.92243696]
[1763849898810,3.29,127.12,127.07,20.60243696]
[1763849899508,3.29,127.12,127.08,0.05714436]
[1763849900212,3.29,127.11,127.08,0.05714436]
[1763849902414,3.29,127.1,127.08,0.05714436]
[1763849902600,3.34410335,127.1,127.08,0.05714436]
[1763849903318,3.34410335,127.1,127.02,3.09408448]
[1763849903319,3.29,127.08,127.02,3.09408448]
[1763849903515,3.29,127.07,127.02,3.09408448]
[1763849903717,3.29,127.06,127.02,3.09408448]
[1763849904213,3.29,127.04,127.03,0.05128366]
[1763849905011,3.34981337,127.05,127.03,0.05128366]
[1763849906106,0.05981337,127.05,127.04,3.83408448]
[1763849906304,3.29,127.08,127.05,0.74]
[1763849906611,3.29,127.08,127.07,3.09408448]
[1763849907111,3.29,127.11,127.07,3.83408448]
[1763849907317,3.29,127.09,127.08,0.05439346]
[1763849910723,3.29,127.09,127.03,10.18328448]
[1763849911020,3.29,127.09,127.03,3.09408448]
[1763849911825,3.29,127.06,127.05,0.05299204]
[1763849922024,19.76780724,127.07,127.05,3.14707652]
[1763849922420,19.76780724,127.07,127.06,0.77]
[1763849922421,16.59780724,127.07,127.06,0.77]
[1763849922924,16.59780724,127.07,127.05,11.00537652]
[1763849923226,3.17,127.06,127.05,0.05299204]
[1763849923425,16.59780724,127.07,127.05,0.05299204]
[1763849923734,19.76780724,127.07,127.05,0.82299204]
[1763849923919,19.76780724,127.07,127.05,7.91129204]
[1763849924123,19.76780724,127.07,127.05,7.14129204]
[1763849924631,3.17,127.06,127.05,0.05299204]
[1763849933630,3.22780724,127.07,127.05,0.05299204]
[1763849933930,3.22780724,127.07,127.05,0.82299204]
[1763849934938,3.22780724,127.07,127.05,2.03537638]
[1763849935139,3.22780724,127.07,127.05,9.12357638]
[1763849935938,3.22780724,127.07,127.06,0.77]
[1763849935939,0.05780724,127.07,127.06,0.77]
[1763849941339,19.71,127.11,127.06,0.77]
[1763849941538,3.17,127.13,127.1,2.75238434]
[1763849942340,3.17,127.13,127.1,2.81080611]
[1763849942533,3.22438478,127.13,127.1,2.81080611]
[1763849943348,3.22438478,127.13,127.12,1.98238434]
[1763849950063,3.03,127.12,127.06,11.72363682]
[1763849950261,3.03,127.11,127.06,2.83238434]
[1763849951163,3.03,127.09,127.07,0.05466364]
[1763849954060,10.1162,127.09,127.07,0.05466364]
[1763849954465,3.03,127.08,127.07,0.05466364]
[1763849955869,3.03,127.09,127.07,0.05466364]
[1763849956665,3.03,127.09,127.07,0.90466364]
[1763849956963,3.08391555,127.1,127.08,1.98238434]
[1763849957266,3.08391555,127.1,127.08,2.83238434]
[1763849958167,0.05391555,127.1,127.08,2.83238434]
[1763849958370,0.05391555,127.1,127.09,0.85]
[1763849975088,3.08391555,127.1,127.08,1.98238434]
[1763849975276,3.08391555,127.1,127.07,0.90466364]
[1763849977186,3.08391555,127.1,127.07,7.99186364]
[1763849986399,3.08391555,127.1,127.07,0.05466364]
[1763849988193,3.2,127.08,127.07,0.05466364]
[1763849994812,3.2,127.09,127.07,0.05466364]
[1763849997310,10.2863,127.09,127.07,0.05466364]
[1763849997509,3.2,127.08,127.07,0.05466364]
[1763849999307,3.2,127.07,127.02,17.73085248]
[1763849999510,3.2,127.07,127.03,0.9]
[1763850000008,3.2,127.06,127.03,7.9895]
[1763850000404,3.25221481,127.06,127.03,8.04865261]
[1763850000714,0.05221481,127.06,127.05,0.9]
[1763850003014,3.25221481,127.06,127.04,0.9]
[1763850003815,0.05221481,127.06,127.05,0.9]
[1763850005312,16.52,127.1,127.07,7.087]
[1763850005518,19.72,127.1,127.08,0.9]
[1763850006416,19.72,127.1,127.08,0.96018375]
[1763850006417,19.77568508,127.1,127.08,0.96018375]
[1763850006915,19.77568508,127.1,127.08,0.06018375]
[1763850008914,3.06,127.09,127.08,0.06018375]
[1763850011712,19.63568508,127.1,127.08,0.06018375]
[1763850011915,3.06,127.09,127.08,0.06018375]
[1763850013122,3.11568508,127.1,127.08,0.96018375]
[1763850014720,0.05568508,127.1,127.08,0.96018375]
[1763850016217,0.05568508,127.1,127.09,0.9]
[1763850033837,16.52,127.14,127.11,0.9]
[1763850034039,19.58,127.14,127.11,0.9]
[1763850034440,3.06,127.13,127.11,0.9]
[1763850034841,3.12046721,127.13,127.11,0.95786994]
[1763850035341,3.12046721,127.13,127.11,8.04276994]
[1763850037042,3.12046721,127.13,127.11,0.05786994]
[1763850037245,3.12046721,127.13,127.06,12.83821338]
[1763850037246,3.0,127.12,127.06,10.64125248]
[1763850037546,3.0,127.08,127.04,9.74125248]
[1763850037736,3.0,127.08,127.01,10.64125248]
[1763850038239,3.0,127.05,127.03,0.95219613]
[1763850038631,3.0,127.05,127.03,0.05219613]
[1763850044143,10.0886,127.05,127.03,0.05219613]
[1763850044348,3.14,127.04,127.03,0.05219613]
[1763850044739,3.14,127.04,126.99,0.9]
[1763850045138,7.0897,127.03,126.99,0.9]
[1763850045347,3.14,127.02,126.99,0.9]
[1763850045747,3.19405847,127.02,126.99,0.96011315]
[1763850049749,3.19405847,127.02,126.99,0.06011315]
[1763850060652,10.28415847,127.02,126.99,0.06011315]
[1763850061255,3.14,127.01,126.99,0.06011315]
[1763850063458,3.19405847,127.02,126.99,0.96011315]
[1763850066657,3.19405847,127.02,126.99,7.15171315]
[1763850066960,3.19405847,127.02,127.0,2.88455683]
[1763850072172,3.19405847,127.02,127.0,9.97565683]
[1763850075969,0.05405847,127.02,127.01,0.9]
[1763850083574,0.05405847,127.02,127.01,10.64125248]
[1763850087083,3.14,127.07,127.04,0.9]
[1763850087772,3.14,127.07,127.04,7.9889]
[1763850088078,3.1952342,127.07,127.04,8.04152286]
[1763850088978,3.1952342,127.07,127.05,0.9]
[1763850089477,0.0552342,127.07,127.06,0.9]
[1763850090481,3.14,127.12,127.08,0.9]
[1763850090790,3.14,127.12,127.09,0.9]
[1763850091480,3.19641603,127.12,127.09,0.95372128]
[1763850101883,3.19641603,127.12,127.09,0.05372128]
[1763850103694,3.19641603,127.12,127.09,0.95372128]
[1763850105394,3.19641603,127.12,127.1,0.9]
[1763850106585,0.05641603,127.12,127.1,0.9]
[1763850106893,0.05641603,127.12,127.11,0.9]
[1763850107585,3.15641603,127.12,127.09,0.05372128]
[1763850107787,3.1,127.11,127.09,0.05372128]
[1763850109197,3.1,127.1,127.09,0.05372128]
[1763850126106,0.05641603,127.12,127.09,0.95372128]
[1763850126308,3.37641603,127.12,127.09,0.95372128]
[1763850127113,3.37641603,127.12,127.1,7.0854]
[1763850127414,0.05641603,127.12,127.11,0.9]
[1763850127611,113.24370433,127.19,127.11,0.9]
[1763850127612,3.09720433,127.21,127.15,0.9]
[1763850127815,3.32,127.18,127.15,0.9]
[1763850128311,16.5,127.2,127.16,0.9]
[1763850128518,0.06000042,127.19,127.17,0.9510418]
[1763850128708,3.38000042,127.19,127.17,0.9510418]
[1763850130215,3.38000042,127.19,127.17,8.0326418]
[1763850130412,0.06000042,127.19,127.18,0.9]
[1763850130614,3.32,127.24,127.2,0.9]
[1763850131614,0.05080484,127.23,127.21,0.95621369]
[1763850132821,0.05080484,127.23,127.22,0.9]
[1763850133019,16.5,127.27,127.22,0.9]
[1763850133322,3.32,127.28,127.24,0.9]
[1763850134111,0.05469872,127.27,127.25,0.957835]
[1763850136416,3.37469872,127.27,127.25,0.957835]
[1763850136617,0.05469872,127.27,127.25,0.957835]
[1763850138732,3.32,127.31,127.25,0.957835]
[1763850139422,16.48,127.33,127.27,0.9]
[1763850139617,0.0568784,127.31,127.29,0.95887911]
[1763850145827,0.0568784,127.31,127.3,3.99720433]
[1763850146620,3.3768784,127.31,127.3,3.09720433]
[1763850147020,3.3768784,127.31,127.29,0.05887911]
[1763850147426,0.0568784,127.31,127.29,0.95887911]
[1763850147933,0.0568784,127.31,127.3,3.09720433]
[1763850149530,3.3768784,127.31,127.3,3.09720433]
[1763850152622,3.3768784,127.31,127.29,0.05887911]
[1763850153030,3.32,127.3,127.25,3.09720433]
[1763850153228,3.32,127.27,127.23,4.05720433]
[1763850153420,3.32,127.32,127.25,4.05720433]
[1763850154135,3.32,127.29,127.27,0.05228013]
[1763850154336,3.37967781,127.3,127.27,4.10948446]
[1763850154729,3.37967781,127.3,127.27,11.18548446]
[1763850155536,3.37967781,127.3,127.27,4.10948446]
[1763850157230,0.05967781,127.3,127.28,0.95]
[1763850157629,3.36967781,127.3,127.28,0.95]
[1763850158032,0.05967781,127.3,127.28,0.95]
[1763850158233,0.05967781,127.3,127.28,8.0254]
[1763850158739,0.05967781,127.3,127.29,0.95]
[1763850159145,0.05967781,127.3,127.29,4.04720433]
[1763850159537,0.05967781,127.3,127.29,0.95]
[1763850171951,3.24967781,127.3,127.28,8.0254]
[1763850172255,0.05967781,127.3,127.28,8.0254]
[1763850172548,0.05967781,127.3,127.29,0.95]
[1763850173052,3.24967781,127.3,127.28,8.0254]
[1763850173240,3.24967781,127.3,127.27,1.00228013]
[1763850174735,3.24967781,127.3,127.27,0.05228013]
[1763850179350,3.19,127.28,127.27,0.05228013]
[1763850180144,3.19,127.26,127.23,2.9263954]
[1763850180353,3.19,127.26,127.21,12.66764788]
[1763850180748,3.19,127.26,127.21,2.9263954]
[1763850181150,3.19,127.24,127.22,0.05577675]
[1763850182648,0.052179,127.25,127.22,1.00577675]
[1763850182853,3.242179,127.25,127.22,1.00577675]
[1763850183242,3.242179,127.25,127.22,0.05577675]
[1763850185150,0.052179,127.25,127.23,1.9763954]
[1763850185347,3.242179,127.25,127.23,1.9763954]
[1763850186450,0.052179,127.25,127.23,2.9363954]
[1763850186651,0.052179,127.25,127.24,0.96]
[1763850190155,3.17,127.29,127.25,8.0369]
[1763850190357,3.17,127.29,127.26,1.9763954]
[1763850190955,3.22274353,127.29,127.26,2.02595804]
[1763850191451,3.22274353,127.29,127.26,10.06245804]
[1763850197463,0.05274353,127.29,127.28,2.9363954]
[1763850203463,3.22274353,127.29,127.28,1.9763954]
[1763850203962,3.17,127.35,127.28,2.9363954]
[1763850204168,3.17,127.35,127.31,0.96]
[1763850205159,3.22470592,127.34,127.32,0.05650049]
[1763850210076,10.29700592,127.34,127.32,0.05650049]
[1763850210269,3.17,127.33,127.32,0.05650049]
[1763850210973,3.17,127.33,127.32,2.03289589]
[1763850212279,0.05470592,127.34,127.33,0.96]
[1763850213177,3.22470592,127.34,127.32,2.99289589]
[1763850214372,0.05470592,127.34,127.33,0.96]
[1763850214580,0.05470592,127.34,127.33,2.9363954]
[1763850216675,3.15470592,127.34,127.32,1.00650049]
[1763850216871,3.15470592,127.34,127.32,2.03289589]
[1763850217072,3.15470592,127.34,127.32,0.05650049]
[1763850223383,0.05470592,127.34,127.32,2.98289589]
[1763850223584,0.05470592,127.34,127.33,0.95]
[1763850223977,0.05470592,127.34,127.32,2.98289589]
[1763850224177,3.18470592,127.34,127.32,2.98289589]
[1763850224384,0.05470592,127.34,127.33,0.95]
[1763850226289,3.13,127.37,127.35,0.95]
[1763850226474,3.13,127.37,127.35,1.9763954]
[1763850226984,3.13,127.37,127.33,1.9763954]
[1763850227374,3.13,127.35,127.34,0.05961332]
[1763850239397,3.13,127.35,127.3,7.0743]
[1763850239593,3.13,127.35,127.3,8.0843]
[1763850239998,7.12407668,127.36,127.3,8.0843]
[1763850239999,19.59,127.34,127.3,7.0743]
[1763850240301,3.18398669,127.33,127.31,0.05422869]
[1763850242006,3.13,127.32,127.31,0.05422869]
[1763850242206,19.59,127.32,127.31,0.05422869]
[1763850249006,3.15,127.31,127.28,7.0754]
[1763850249909,3.15,127.31,127.28,8.1354]
[1763850250108,3.15,127.31,127.28,8.1866066]
[1763850257118,3.15,127.31,127.29,1.06]
[1763850260321,116.27675397,127.31,127.25,9.74125248]
[1763850260624,3.15,127.28,127.22,10.80125248]
[1763850260924,3.15,127.26,127.22,17.88005248]
[1763850261123,3.15,127.26,127.22,8.1388]
[1763850261325,0.05705993,127.25,127.23,0.05032302]
[1763850261518,3.20705993,127.25,127.23,0.05032302]
[1763850265015,3.20705993,127.25,127.23,1.11032302]
[1763850268133,3.20705993,127.25,127.23,0.05032302]
[1763850270131,3.15,127.24,127.23,0.05032302]
[1763850272737,0.05705993,127.25,127.23,1.11032302]
[1763850272938,0.05705993,127.25,127.23,4.19537699]
[1763850273137,0.05705993,127.25,127.24,1.06]
[1763850274336,3.15,127.29,127.24,1.06]
[1763850275042,3.15,127.29,127.27,1.06]
[1763850275433,3.20949331,127.29,127.27,1.11874658]
[1763850278129,0.05949331,127.29,127.27,1.11874658]
[1763850278345,3.18,127.33,127.28,1.07]
[1763850279143,3.18,127.33,127.29,8.1449]
[1763850279445,3.07265983,127.32,127.3,0.05239311]
[1763850279845,3.07265983,127.32,127.3,8.19669311]
[1763850280343,0.05265983,127.32,127.31,1.07]
[1763850283839,3.02,127.36,127.33,1.07]
[1763850284844,3.07873565,127.36,127.33,1.12923215]
[1763850285941,3.07873565,127.36,127.34,1.07]
[1763850285942,0.05873565,127.36,127.34,1.07]
[1763850286146,3.07873565,127.36,127.34,1.07]
[1763850287246,3.07873565,127.36,127.33,1.12923215]
[1763850291538,3.07873565,127.36,127.33,0.05923215]
[1763850293148,10.15003565,127.36,127.33,0.05923215]
[1763850293452,3.02,127.35,127.33,0.05923215]
[1763850295147,3.02,127.35,127.33,1.12923215]
[1763850295944,3.02,127.35,127.33,0.05923215]
[1763850301246,3.02,127.35,127.31,1.97418428]
[1763850301551,3.02,127.33,127.29,1.97418428]
[1763850302152,3.02,127.33,127.29,3.09418428]
[1763850302359,3.06985032,127.32,127.3,0.0587723]
[1763850302550,0.04985032,127.32,127.31,1.97418428]
[1763850302750,0.04985032,127.32,127.31,3.09418428]
[1763850304151,3.02,127.37,127.32,1.12]
[1763850304350,3.02,127.37,127.34,1.97418428]
[1763850305054,3.07044162,127.37,127.34,0.0581838]
[1763850305643,3.02,127.36,127.31,7.0736]
[1763850306442,3.32,127.35,127.29,7.0746]
[1763850306648,3.32,127.32,127.31,0.05519706]
[1763850314057,3.32,127.32,127.23,9.74125248]
[1763850314058,3.32,127.29,127.23,9.74125248]
[1763850314258,1.97418428,127.28,127.22,1.24]
[1763850314559,3.32,127.27,127.22,1.24]
[1763850314952,3.32,127.25,127.2,8.3197]
[1763850315152,3.32,127.25,127.23,0.04989187]
[1763850316255,3.32,127.23,127.18,1.29]
[1763850316949,3.32,127.23,127.15,13.00543676]
[1763850317255,3.32,127.21,127.16,1.29]
[1763850317455,0.05582789,127.2,127.18,1.34264798]
[1763850317650,0.05582789,127.2,127.18,118.57454798]
[1763850317858,0.05582789,127.2,127.19,1.29]
[1763850318256,3.32,127.24,127.2,1.29]
[1763850319157,3.37798818,127.23,127.21,0.05091373]
[1763850319555,0.05798818,127.23,127.21,1.34091373]
[1763850320063,3.37798818,127.23,127.21,1.34091373]
[1763850320264,3.37798818,127.23,127.21,0.05091373]
[1763850325567,0.05798818,127.23,127.21,1.34091373]
[1763850327162,0.05798818,127.23,127.21,8.42011373]
[1763850332371,0.05798818,127.23,127.22,1.29]
[1763850334580,3.32,127.29,127.24,1.29]
[1763850334874,3.32,127.29,127.25,1.29]
[1763850335373,3.32,127.29,127.25,8.367]
[1763850335566,0.05708192,127.28,127.26,1.34196196]
[1763850336675,0.05708192,127.28,127.26,8.41846196]
[1763850337074,0.05708192,127.28,127.27,1.29]
[1763850338877,3.07708192,127.28,127.26,0.05196196]
[1763850339175,3.07708192,127.28,127.26,1.33196196]
[1763850340085,0.05708192,127.28,127.27,1.28]
[1763850341685,3.02,127.33,127.29,1.28]
[1763850342590,0.06007011,127.32,127.3,0.05403336]
[1763850342782,3.02,127.31,127.3,0.05403336]
[1763850344190,3.08007011,127.32,127.3,0.05403336]
[1763850355511,3.08007011,127.32,127.25,126.5279]
[1763850355512,3.02,127.3,127.25,8.4068]
[1763850356507,3.02,127.28,127.26,0.05771651]
[1763850358913,3.02,127.27,127.26,0.05771651]
[1763850369627,3.0,127.24,127.2,9.74125248]
[1763850369826,3.0,127.24,127.19,1.4]
[1763850370522,0.05154013,127.23,127.2,0.05301186]
[1763850370723,3.0,127.22,127.2,0.05301186]
[1763850372828,10.0795,127.21,127.2,0.05301186]
[1763850373021,3.0,127.21,127.2,0.05301186]
[1763850373624,3.0,127.2,127.15,11.14125248]
[1763850373820,3.0,127.19,127.13,11.14125248]
[1763850374024,3.0,127.19,127.13,1.4]
[1763850374634,3.05122517,127.17,127.15,0.05621636]
[1763850379035,3.05122517,127.17,127.15,1.45621636]
[1763850379240,0.05122517,127.17,127.15,1.45621636]
[1763850379440,3.0,127.19,127.16,1.4]
[1763850380236,3.0,127.19,127.15,7.13861636]
[1763850380436,3.08897863,127.21,127.15,7.13861636]
[1763850380437,3.0,127.17,127.15,7.13861636]
[1763850380746,3.0,127.17,127.15,0.05621636]
[1763850385343,0.04995838,127.18,127.15,1.45621636]
[1763850385344,19.50995838,127.18,127.15,1.45621636]
[1763850385540,3.0,127.17,127.15,1.45621636]
[1763850385740,3.0,127.17,127.15,0.05621636]
[1763850386137,3.04995838,127.18,127.15,8.53881636]
[1763850387047,0.04995838,127.18,127.16,8.482]
[1763850390155,3.04995838,127.18,127.15,0.05621636]
[1763850394247,10.13135838,127.18,127.15,0.05621636]
[1763850394454,3.0,127.17,127.15,0.05621636]
[1763850395762,3.0,127.17,127.15,1.45621636]
[1763850397965,3.0,127.17,127.15,0.05621636]
[1763850398265,3.0,127.17,127.09,1.4]
[1763850398757,3.0,127.17,127.12,1.46]
[1763850399160,0.05670333,127.16,127.12,1.46]
[1763850399356,3.22670333,127.16,127.13,1.51816228]
[1763850400060,3.22670333,127.16,127.14,1.46]
[1763850400259,0.05670333,127.16,127.14,1.46]
[1763850401153,0.05670333,127.16,127.14,8.5432]
[1763850402567,3.22670333,127.16,127.13,1.51816228]
[1763850402768,3.22670333,127.16,127.13,0.05816228]
[1763850407968,10.30900333,127.16,127.13,0.05816228]
[1763850408170,3.17,127.15,127.13,0.05816228]
[1763850409978,3.17,127.14,127.07,1.46]
[1763850410373,3.17,127.13,127.05,1.46]
[1763850410870,3.17,127.13,127.08,0.05744005]
[1763850410871,0.05418235,127.1,127.08,0.05744005]
[1763850411077,3.22418235,127.1,127.08,0.05744005]
[1763850418777,3.22418235,127.1,127.04,1.46]
[1763850418778,3.17,127.09,127.04,1.46]
[1763850418982,3.17,127.09,127.03,7.0891]
[1763850419982,3.22331962,127.07,127.05,0.0516248]
[1763850421989,0.05331962,127.07,127.05,1.5716248]
[1763850422283,3.17,127.11,127.07,1.52]
[1763850422678,3.17,127.11,127.09,8.6061]
[1763850423083,3.17,127.11,127.09,7.0861]
[1763850423283,3.22997299,127.11,127.09,7.14162611]
[1763850426784,0.05997299,127.11,127.1,1.52]
[1763850444500,1.98096763,127.18,127.12,110.2011]
[1763850444798,3.02,127.17,127.11,9.74125248]
[1763850445005,3.02,127.17,127.1,13.24222011]
[1763850445496,3.02,127.14,127.12,0.04953227]
[1763850448798,10.1034,127.14,127.12,0.04953227]
[1763850449003,3.02,127.13,127.12,0.04953227]
[1763850450607,3.06985222,127.15,127.12,1.56953227]
[1763850453407,0.04985222,127.15,127.12,1.56953227]
[1763850454311,110.1248,127.22,127.12,1.56953227]
[1763850454312,3.02,127.23,127.16,1.47]
[1763850454511,3.02,127.21,127.16,11.21125248]
[1763850454698,3.02,127.21,127.16,1.47]
[1763850455304,1.98096763,127.22,127.17,0.05328793]
[1763850455305,3.02,127.19,127.17,0.05328793]
[1763850468516,3.09,127.17,127.12,1.46]
[1763850468719,3.09,127.15,127.12,1.46]
[1763850469422,19.57,127.16,127.12,1.46]
[1763850469620,0.05369724,127.15,127.13,1.56697241]
[1763850470123,0.05369724,127.15,127.13,8.65077241]
[1763850473813,3.14369724,127.15,127.13,0.05697241]
[1763850474018,3.14369724,127.15,127.13,1.56697241]
[1763850475125,3.14369724,127.15,127.13,0.05697241]
[1763850475623,3.14369724,127.15,127.13,1.56697241]
[1763850476724,3.14369724,127.15,127.13,8.65077241]
[1763850481131,0.05369724,127.15,127.14,1.51]
[1763850482526,3.09,127.14,127.1,9.74125248]
[1763850482729,3.09,127.12,127.09,1.51]
[1763850483121,3.09,127.12,127.08,11.25125248]
[1763850483324,3.09,127.12,127.09,1.51]
[1763850483524,3.14523036,127.12,127.09,1.55967056]
[1763850483727,3.09,127.11,127.09,0.04967056]
[1763850484537,6.18645468,127.11,127.09,0.04967056]
[1763850484748,6.18645468,127.11,127.05,8.5982]
[1763850484749,3.09,127.1,127.05,8.5982]
[1763850485129,3.09,127.1,127.06,1.51]
[1763850485630,3.14072518,127.09,127.07,0.05850192]
[1763850487330,3.14072518,127.09,127.02,9.74125248]
[1763850487734,3.1,127.07,127.01,11.25125248]
[1763850488036,3.1,127.07,127.02,1.51]
[1763850488239,3.1,127.07,127.03,1.51]
[1763850488432,3.15432349,127.06,127.03,1.55993785]
[1763850494141,3.15432349,127.06,127.03,0.04993785]
[1763850494849,3.1,127.05,127.03,0.04993785]
[1763850495442,3.1,127.04,126.98,8.602]
[1763850495848,3.1,127.04,127.0,1.51]
[1763850496438,0.05371175,127.03,127.01,0.0548935]
[1763850496644,3.15371175,127.03,127.01,0.0548935]
[1763850496840,0.05371175,127.03,127.02,1.51]
[1763850498552,3.1,127.06,127.02,111.8003]
[1763850498857,7.0853,127.11,127.02,111.8003]
[1763850498858,3.1,127.09,127.04,1.51]
[1763850499549,3.1,127.09,127.06,7.0877]
[1763850499762,0.05007714,127.08,127.06,8.5977]
[1763850500055,3.15007714,127.08,127.05,1.56306517]
[1763850501156,3.15007714,127.08,127.05,8.65126517]
[1763850502859,0.05007714,127.08,127.07,1.51]
[1763850514772,19.58,127.13,127.09,1.51]
[1763850515873,3.3156555,127.12,127.1,1.56288867]
[1763850516070,3.3156555,127.12,127.1,8.64828867]
[1763850519668,3.3156555,127.12,127.1,0.05288867]
[1763850521971,3.17,127.1,127.06,8.5974]
[1763850522876,3.17,127.1,127.07,0.05046022]
[1763850523082,3.22510818,127.09,127.07,0.05046022]
[1763850524773,3.22510818,127.09,127.07,1.56046022]
[1763850525584,3.22510818,127.09,127.07,0.05046022]
[1763850526788,3.22510818,127.09,127.07,1.56046022]
[1763850530793,3.22510818,127.09,127.07,0.05046022]
[1763850531790,3.22510818,127.09,127.07,0.00046022]
[1763850532088,3.22510818,127.09,127.03,1.51]
[1763850532884,3.22510818,127.09,127.05,0.05973069]
[1763850533084,3.17,127.08,127.05,0.05973069]
[1763850539800,3.17,127.07,127.05,0.05973069]
[1763850541396,10.2573,127.07,127.05,0.05973069]
[1763850541695,3.17,127.06,127.05,0.05973069]
[1763850542699,3.17,127.08,127.05,1.61973069]
[1763850546093,3.17,127.08,127.05,8.70793069]
[1763850546397,3.17,127.08,127.06,1.56]
[1763850548501,0.05510818,127.09,127.06,1.56]
[1763850548901,0.05510818,127.09,127.07,1.56]
[1763850549700,0.05510818,127.09,127.07,8.6472]